bitfinex-derivatives/quotes_SOLF0:USTF0_20250328
["timestamp","ask_amount","ask_price","bid_price","bid_amount"]
[1743120992606,25.64,137.94,137.93,7.252]
[1743120992907,13.22561534,137.96,137.93,7.252]
[1743120993508,20.47641534,137.96,137.93,7.252]
[1743120993804,7.30411224,137.96,137.94,7.2514]
[1743120993997,0.05331224,137.96,137.94,7.2514]
[1743120994201,0.05331224,137.96,137.93,13.28064347]
[1743120994402,0.05331224,137.96,137.95,7.251]
[1743120995108,0.05331224,137.96,137.93,13.28064347]
[1743120995406,7.2511,137.95,137.93,13.28064347]
[1743120995713,0.05331224,137.96,137.93,13.28064347]
[1743120996310,7.30401224,137.96,137.94,7.2515]
[1743120999113,7.30401224,137.96,137.93,20.53244347]
[1743120999714,7.30401224,137.96,137.94,7.2513]
[1743121000515,7.251,137.95,137.93,20.53244347]
[1743121001312,0.05331224,137.96,137.93,0.05502813]
[1743121001712,7.2515,137.94,137.93,0.05502813]
[1743121003316,7.2537,137.9,137.88,13.22561534]
[1743121004417,7.30127621,137.9,137.88,13.28089164]
[1743121005020,7.30127621,137.9,137.88,20.53529164]
[1743121006614,7.30127621,137.9,137.88,0.0552763]
[1743121007216,7.30127621,137.9,137.88,7.3097763]
[1743121008526,7.2541,137.89,137.88,0.0552763]
[1743121014531,20.52709155,137.9,137.88,0.0552763]
[1743121015333,0.04757621,137.9,137.88,7.3098763]
[1743121016732,7.30127621,137.9,137.88,7.3098763]
[1743121017636,0.04757621,137.9,137.88,7.3098763]
[1743121019434,7.30117621,137.9,137.88,7.3098763]
[1743121021530,0.04757621,137.9,137.89,7.2541]
[1743121021738,0.04757621,137.9,137.89,20.47971534]
[1743121024934,0.04757621,137.9,137.88,0.0552763]
[1743121025139,38.85319155,137.9,137.88,0.0552763]
[1743121025331,7.2541,137.89,137.88,0.0552763]
[1743121026639,0.04757621,137.9,137.88,13.28089164]
[1743121027346,0.04757621,137.9,137.89,7.2541]
[1743121028347,0.04757621,137.9,137.88,13.28089164]
[1743121028639,0.04757621,137.9,137.88,0.0552763]
[1743121029646,7.30137621,137.9,137.88,0.0552763]
[1743121029842,0.04757621,137.9,137.88,0.0552763]
[1743121030244,7.30137621,137.9,137.88,0.0552763]
[1743121031849,0.04757621,137.9,137.88,7.3096763]
[1743121032640,0.04757621,137.9,137.89,7.2541]
[1743121037350,0.04757621,137.9,137.88,13.28089164]
[1743121037546,0.04757621,137.9,137.88,0.0552763]
[1743121037746,7.30147621,137.9,137.88,0.0552763]
[1743121038638,7.2541,137.89,137.88,0.0552763]
[1743121040350,0.04757621,137.9,137.89,7.2541]
[1743121041759,40.09686493,137.96,137.88,13.28089164]
[1743121042051,40.09686493,137.96,137.94,13.22561534]
[1743121042248,40.09686493,137.96,137.95,7.251]
[1743121042451,40.09686493,137.96,137.94,13.22561534]
[1743121042849,40.14679241,137.96,137.95,7.251]
[1743121043250,0.04992748,137.96,137.95,7.251]
[1743121044850,7.2491,137.99,137.96,7.2501]
[1743121045646,7.2495,137.98,137.95,7.2507]
[1743121045857,78.94248027,138.01,137.94,13.22561534]
[1743121046050,7.2503,137.97,137.95,0.05004187]
[1743121046447,0.05085741,137.98,137.95,0.05004187]
[1743121046751,7.2505,137.96,137.95,0.05004187]
[1743121048053,7.2526,137.92,137.88,13.22561534]
[1743121048557,20.47901534,137.91,137.87,25.64]
[1743121048751,13.22561534,137.91,137.87,25.64]
[1743121049146,13.22561534,137.91,137.88,0.0544957]
[1743121049455,0.04896874,137.9,137.88,0.0544957]
[1743121050052,0.04896874,137.9,137.89,7.2541]
[1743121050256,0.04896874,137.9,137.88,0.0544957]
[1743121051159,0.04896874,137.9,137.88,7.3088957]
[1743121051359,0.04896874,137.9,137.88,0.0544957]
[1743121052755,0.04896874,137.9,137.89,7.2541]
[1743121053154,25.64,137.95,137.88,0.0544957]
[1743121053352,7.2511,137.95,137.88,20.71231501]
[1743121053656,7.2511,137.95,137.88,22.69091501]
[1743121053860,7.2518,137.94,137.91,7.2527]
[1743121054166,25.66,137.96,137.9,46.33781931]
[1743121054362,7.2487,138.0,137.92,20.65781931]
[1743121054658,7.2487,138.0,137.93,25.68]
[1743121055055,7.249,137.99,137.93,25.68]
[1743121055558,0.04696603,137.97,137.95,0.0464346]
[1743121055953,0.04696603,137.97,137.95,7.2970346]
[1743121056149,0.04696603,137.97,137.95,0.0464346]
[1743121056361,7.29726603,137.97,137.95,0.0464346]
[1743121057260,7.2505,137.96,137.95,0.0464346]
[1743121059454,7.29706603,137.97,137.95,0.0464346]
[1743121060660,7.2505,137.96,137.95,0.0464346]
[1743121062853,7.29716603,137.97,137.95,0.0464346]
[1743121063858,7.2505,137.96,137.95,0.0464346]
[1743121067571,32.9305,137.96,137.95,0.0464346]
[1743121073079,46.14291522,137.96,137.95,0.0464346]
[1743121080785,32.9305,137.96,137.95,0.0464346]
[1743121082585,7.2505,137.96,137.95,0.0464346]
[1743121083586,7.2523,137.93,137.91,7.2531]
[1743121084587,7.2992627,137.93,137.91,7.29998659]
[1743121085089,0.0469627,137.93,137.91,7.29998659]
[1743121087977,13.21241522,137.92,137.91,0.04688659]
[1743121088590,20.46501522,137.92,137.91,0.04688659]
[1743121089191,13.21241522,137.92,137.91,0.04688659]
[1743121090090,13.21241522,137.92,137.91,7.29998659]
[1743121090290,0.0469627,137.93,137.91,7.29998659]
[1743121090495,0.0469627,137.93,137.91,13.25930181]
[1743121090685,0.0469627,137.93,137.92,7.2526]
[1743121100699,13.21241522,137.98,137.95,7.2508]
[1743121101096,20.46211522,137.98,137.95,7.2508]
[1743121101685,20.51656018,137.98,137.95,7.2508]
[1743121101885,20.51656018,137.98,137.95,7.30510891]
[1743121102091,20.51656018,137.98,137.96,7.2504]
[1743121102400,20.51656018,137.98,137.95,0.05430891]
[1743121102898,20.51656018,137.98,137.96,7.2504]
[1743121103904,20.51656018,137.98,137.95,7.30500891]
[1743121104699,7.25,137.97,137.95,0.05430891]
[1743121105199,13.21241522,137.96,137.95,0.05430891]
[1743121105402,20.46291522,137.96,137.95,0.05430891]
[1743121116504,7.2524,137.93,137.91,7.2531]
[1743121116705,13.21241522,137.94,137.91,7.2531]
[1743121117011,13.21241522,137.94,137.9,13.21241522]
[1743121117214,20.46401522,137.94,137.91,7.2528]
[1743121117709,20.51546481,137.94,137.91,7.30666947]
[1743121119115,7.2522,137.93,137.91,0.05386947]
[1743121119409,13.26386481,137.94,137.91,0.05386947]
[1743121119717,46.03556481,137.94,137.91,7.30666947]
[1743121121104,25.57144959,137.94,137.92,7.2524]
[1743121121310,25.57144959,137.94,137.91,0.05386947]
[1743121121708,25.57144959,137.94,137.92,7.2522]
[1743121122712,32.82304959,137.94,137.91,7.30666947]
[1743121123307,25.57144959,137.94,137.92,7.2525]
[1743121123511,25.57144959,137.94,137.91,0.05386947]
[1743121123713,0.05144959,137.94,137.92,13.21241522]
[1743121124914,0.05144959,137.94,137.93,7.252]
[1743121130217,13.21241522,138.0,137.93,25.5]
[1743121130418,38.71241522,138.02,137.97,13.21241522]
[1743121130616,13.21241522,138.02,137.97,13.21241522]
[1743121130816,13.21241522,138.02,138.0,7.2481]
[1743121131319,13.26749748,138.02,138.0,0.04731284]
[1743121132623,7.2478,138.01,138.0,0.04731284]
[1743121133615,32.7278,138.01,138.0,0.04731284]
[1743121133822,25.48,138.01,137.95,13.21241522]
[1743121134126,13.21241522,137.99,137.95,13.21241522]
[1743121134319,7.2498,137.98,137.95,13.21241522]
[1743121134518,13.21241522,137.99,137.95,13.21241522]
[1743121134925,0.05185857,137.98,137.96,0.05429518]
[1743121135320,0.05185857,137.98,137.96,7.30479518]
[1743121135526,0.05185857,137.98,137.96,0.05429518]
[1743121136029,0.05185857,137.98,137.96,7.30469518]
[1743121139239,7.30135857,137.98,137.96,7.30469518]
[1743121139429,0.05185857,137.98,137.96,0.05429518]
[1743121139739,38.67241522,138.04,137.97,13.21241522]
[1743121139931,7.2469,138.03,137.99,20.46091522]
[1743121140632,38.67241522,138.04,137.99,20.46091522]
[1743121140633,0.04616255,138.02,138.0,0.04653418]
[1743121141039,0.04616255,138.02,138.0,7.29483418]
[1743121142641,0.04616255,138.02,138.01,7.2478]
[1743121143636,0.04616255,138.02,138.0,7.29463418]
[1743121143831,0.04616255,138.02,138.0,0.04653418]
[1743121144338,0.04616255,138.02,138.0,7.29463418]
[1743121144541,0.04616255,138.02,138.0,0.04653418]
[1743121145040,0.04616255,138.02,138.0,7.29453418]
[1743121145541,0.04616255,138.02,138.0,0.04653418]
[1743121146147,0.04616255,138.02,138.01,7.2478]
[1743121148348,0.04616255,138.02,138.01,20.46021522]
[1743121149045,20.45731522,138.07,138.04,7.2459]
[1743121149248,7.2449,138.07,138.04,7.2459]
[1743121150046,7.2449,138.07,138.03,20.45881522]
[1743121150242,7.2453,138.06,138.04,0.04816269]
[1743121154453,7.2457,138.05,138.04,0.04816269]
[1743121155251,7.2455,138.06,138.04,0.04816269]
[1743121155852,0.05134138,138.07,138.05,13.21241522]
[1743121156251,0.05134138,138.07,138.05,20.45781522]
[1743121157155,0.05134138,138.07,138.06,7.2452]
[1743121157655,0.05134138,138.07,138.05,13.21241522]
[1743121158054,7.29624138,138.07,138.05,13.21241522]
[1743121158648,7.29624138,138.07,138.04,7.29436269]
[1743121160054,7.29624138,138.07,138.05,7.2457]
[1743121160356,7.29624138,138.07,138.04,0.04816269]
[1743121160557,7.29624138,138.07,138.04,7.29416269]
[1743121162358,7.2453,138.06,138.04,0.04816269]
[1743121162560,0.05134138,138.07,138.04,0.04816269]
[1743121163855,0.05134138,138.07,138.05,13.21241522]
[1743121164255,0.05134138,138.07,138.05,20.45771522]
[1743121164760,7.29604138,138.07,138.05,13.21241522]
[1743121165556,7.2452,138.06,138.05,13.21241522]
[1743121168263,7.2457,138.05,138.04,0.04816269]
[1743121169667,7.2454,138.06,138.04,0.04816269]
[1743121173265,7.29624138,138.07,138.04,7.29406269]
[1743121174272,0.05134138,138.07,138.05,13.21241522]
[1743121174667,0.05134138,138.07,138.06,7.2452]
[1743121175673,0.05134138,138.07,138.05,20.45801522]
[1743121182176,0.05134138,138.07,138.05,13.21241522]
[1743121183369,0.05134138,138.07,138.06,7.2452]
[1743121184271,9.95708471,138.14,138.1,7.2431]
[1743121184567,35.41708471,138.14,138.1,20.45551522]
[1743121184771,48.62949993,138.14,138.1,13.21241522]
[1743121185381,0.05524319,138.13,138.11,0.0538062]
[1743121185876,7.2425,138.12,138.11,0.0538062]
[1743121213281,7.29704319,138.13,138.11,0.0538062]
[1743121213486,0.05524319,138.13,138.11,0.0538062]
[1743121213681,0.05524319,138.13,138.11,7.2960062]
[1743121214396,0.05524319,138.13,138.12,7.2421]
[1743121214698,0.05524319,138.13,138.11,0.0538062]
[1743121215198,0.05524319,138.13,138.11,7.2961062]
[1743121223202,0.05524319,138.13,138.11,0.0538062]
[1743121223804,7.2421,138.12,138.11,0.0538062]
[1743121234509,13.21241522,138.12,138.05,13.21241522]
[1743121234902,7.2439,138.09,138.06,7.2449]
[1743121235205,38.61241522,138.1,138.05,13.21241522]
[1743121235605,0.04620731,138.09,138.07,7.2444]
[1743121235902,0.04620731,138.09,138.07,13.21241522]
[1743121236102,25.4,138.13,138.07,13.21241522]
[1743121237409,7.29389321,138.11,138.09,0.05564592]
[1743121241109,45.85551522,138.1,138.09,0.05564592]
[1743121243007,38.61241522,138.1,138.09,0.05564592]
[1743121243213,0.05099321,138.11,138.09,0.05564592]
[1743121243405,0.05099321,138.11,138.09,7.29894592]
[1743121243813,0.05099321,138.11,138.09,0.05564592]
[1743121244915,7.29359321,138.11,138.09,0.05564592]
[1743121245610,7.2431,138.1,138.09,0.05564592]
[1743121246618,20.45551522,138.1,138.09,0.05564592]
[1743121254028,13.21241522,138.1,138.0,13.21241522]
[1743121254229,13.21241522,138.05,138.01,7.2475]
[1743121254418,38.61241522,138.05,138.01,7.2475]
[1743121254720,38.61241522,138.05,138.0,13.21241522]
[1743121254920,20.45921522,138.03,138.02,0.04905664]
[1743121255120,13.21241522,138.03,137.96,15.16941522]
[1743121255322,13.21241522,138.01,137.96,15.16941522]
[1743121255527,7.2492,137.99,137.94,80.54000721]
[1743121255712,13.21241522,137.99,137.95,13.21241522]
[1743121256027,38.61241522,137.99,137.94,101.00382243]
[1743121256225,38.61241522,137.99,137.96,0.05315834]
[1743121256226,0.04688549,137.98,137.96,0.05315834]
[1743121257317,25.44688549,137.98,137.96,0.05315834]
[1743121260522,32.69638549,137.98,137.96,0.05315834]
[1743121261022,25.44688549,137.98,137.96,0.05315834]
[1743121265033,0.04688549,137.98,137.96,13.26557356]
[1743121265522,0.04688549,137.98,137.96,20.51577356]
[1743121265725,0.04688549,137.98,137.96,13.26557356]
[1743121266834,0.04688549,137.98,137.97,7.2499]
[1743121270038,0.04688549,137.98,137.96,20.51567356]
[1743121270232,0.04688549,137.98,137.96,7.30325834]
[1743121274337,0.04688549,137.98,137.97,7.2499]
[1743121275739,0.04688549,137.98,137.96,7.30335834]
[1743121276841,0.04688549,137.98,137.97,7.2499]
[1743121278543,0.04688549,137.98,137.96,7.30335834]
[1743121284246,0.04688549,137.98,137.97,7.2499]
[1743121291456,0.04688549,137.98,137.96,7.30335834]
[1743121291659,0.04688549,137.98,137.96,0.05315834]
[1743121292263,13.21241522,137.97,137.96,0.05315834]
[1743121292562,38.67930071,137.98,137.96,0.05315834]
[1743121292965,45.92910071,137.98,137.96,0.05315834]
[1743121293267,38.67930071,137.98,137.96,0.05315834]
[1743121293468,45.92900071,137.98,137.96,0.05315834]
[1743121294267,38.67930071,137.98,137.96,0.05315834]
[1743121294469,38.67930071,137.98,137.96,7.30355834]
[1743121294764,38.67930071,137.98,137.96,0.05315834]
[1743121294968,45.92890071,137.98,137.96,0.05315834]
[1743121295565,7.2499,137.97,137.96,0.05315834]
[1743121297965,25.44,137.97,137.96,0.05315834]
[1743121298566,32.6899,137.97,137.96,0.05315834]
[1743121302266,20.46381522,137.95,137.9,13.21241522]
[1743121302463,25.42,137.94,137.9,13.21241522]
[1743121302664,25.42,137.94,137.91,7.2526]
[1743121303274,25.47424809,137.94,137.91,7.30772617]
[1743121303569,25.47424809,137.94,137.92,13.21241522]
[1743121304375,25.47424809,137.94,137.93,7.252]
[1743121304673,25.47424809,137.94,137.92,13.21241522]
[1743121305269,25.47424809,137.94,137.92,20.46461522]
[1743121307777,25.47424809,137.94,137.92,13.21241522]
[1743121308277,25.47424809,137.94,137.92,20.46491522]
[1743121308879,25.47424809,137.94,137.91,13.26754139]
[1743121309080,25.47424809,137.94,137.91,0.05512617]
[1743121309282,13.21241522,137.93,137.91,0.05512617]
[1743121309779,7.2526,137.92,137.91,0.05512617]
[1743121310079,20.46471522,137.93,137.91,0.05512617]
[1743121311586,13.21241522,137.93,137.91,0.05512617]
[1743121312582,20.46471522,137.93,137.91,0.05512617]
[1743121313171,13.21241522,137.93,137.91,0.05512617]
[1743121314180,25.42,137.92,137.91,0.05512617]
[1743121318482,32.6726,137.92,137.91,0.05512617]
[1743121318986,7.2526,137.92,137.91,0.05512617]
[1743121319290,32.6726,137.92,137.91,0.05512617]
[1743121319684,7.2526,137.92,137.91,0.05512617]
[1743121320192,45.88471522,137.93,137.91,0.05512617]
[1743121323386,38.63241522,137.93,137.91,7.30822617]
[1743121324796,25.42,137.93,137.91,7.30822617]
[1743121325188,25.47424809,137.94,137.92,7.2521]
[1743121325787,25.47424809,137.94,137.93,7.252]
[1743121326092,0.05424809,137.94,137.93,20.46441522]
[1743121334391,0.05424809,137.94,137.93,13.21241522]
[1743121334597,0.05424809,137.94,137.92,15.12351522]
[1743121335085,0.05424809,137.94,137.93,7.252]
[1743121337797,273.01198471,138.02,137.97,7.2498]
[1743121337996,13.21241522,138.0,137.97,7.2498]
[1743121338399,20.46111522,138.0,137.97,7.2498]
[1743121339201,20.50745231,138.0,137.97,7.30043629]
[1743121340900,7.2489,137.99,137.97,0.05063629]
[1743121341302,13.25875231,138.0,137.97,0.05063629]
[1743121342298,7.2494,137.98,137.97,0.05063629]
[1743121343098,7.2491,137.99,137.97,0.05063629]
[1743121343902,7.2494,137.98,137.97,0.05063629]
[1743121346603,7.2491,137.99,137.97,0.05063629]
[1743121347898,7.2494,137.98,137.97,0.05063629]
[1743121360014,25.46633709,138.0,137.97,7.30053629]
[1743121360721,32.71503709,138.0,137.97,7.30053629]
[1743121361316,25.46633709,138.0,137.97,0.05063629]
[1743121361511,25.46633709,138.0,137.97,13.26305151]
[1743121362019,25.46633709,138.0,137.99,7.2489]
[1743121362615,0.04633709,138.0,137.99,7.2489]
[1743121366023,7.29473709,138.0,137.97,20.51275151]
[1743121367023,13.25875231,138.0,137.97,0.05063629]
[1743121367527,7.2492,137.99,137.97,0.05063629]
[1743121368927,7.2494,137.98,137.97,0.05063629]
[1743121369325,7.249,137.99,137.97,0.05063629]
[1743121369623,13.25875231,138.0,137.97,0.05063629]
[1743121369815,7.2494,137.98,137.97,0.05063629]
[1743121370015,20.46181522,137.98,137.97,0.05063629]
[1743121371525,7.251,137.95,137.94,13.21241522]
[1743121371820,13.21241522,137.98,137.92,13.21241522]
[1743121372032,7.2519,137.94,137.92,13.21241522]
[1743121372828,7.30022682,137.94,137.92,13.2636017]
[1743121373819,0.04832682,137.94,137.92,13.2636017]
[1743121374330,7.29982682,137.94,137.92,13.2636017]
[1743121379827,7.252,137.93,137.92,13.2636017]
[1743121380031,7.252,137.93,137.92,0.05118648]
[1743121384031,20.51244204,137.94,137.92,0.05118648]
[1743121384335,0.04832682,137.94,137.92,0.05118648]
[1743121384533,0.04832682,137.94,137.92,20.5159017]
[1743121386837,7.29982682,137.94,137.92,20.5159017]
[1743121387739,0.04832682,137.94,137.92,20.5159017]
[1743121396549,0.04832682,137.94,137.93,7.252]
[1743121396742,0.04832682,137.94,137.92,13.2636017]
[1743121397143,7.2486,138.0,137.93,25.42]
[1743121397349,7.2486,138.0,137.97,13.21241522]
[1743121398137,7.29826227,138.0,137.97,13.25865807]
[1743121398342,13.21241522,137.99,137.97,0.04624285]
[1743121398537,13.26207749,138.0,137.97,0.04624285]
[1743121398951,13.26207749,138.0,137.97,7.29614285]
[1743121401850,13.26207749,138.0,137.97,0.04624285]
[1743121402051,0.04966227,138.0,137.97,13.25865807]
[1743121402554,0.04966227,138.0,137.99,7.2489]
[1743121403154,0.04966227,138.0,137.98,7.2491]
[1743121403658,0.04966227,138.0,137.97,13.25865807]
[1743121403953,13.26207749,138.0,137.97,0.04624285]
[1743121404160,7.2492,137.99,137.97,0.04624285]
[1743121404360,13.26207749,138.0,137.97,0.04624285]
[1743121404658,15.16087749,138.0,137.97,0.04624285]
[1743121404860,7.2494,137.98,137.97,0.04624285]
[1743121405058,32.6694,137.98,137.97,0.04624285]
[1743121406058,45.88181522,137.98,137.97,0.04624285]
[1743121406263,7.2512,137.95,137.91,20.46531522]
[1743121406851,13.21241522,137.96,137.91,13.21241522]
[1743121407056,25.42,137.95,137.91,13.21241522]
[1743121407257,25.42,137.95,137.92,0.05500101]
[1743121407456,7.30734767,137.94,137.92,0.05500101]
[1743121407763,0.05554767,137.94,137.92,0.05500101]
[1743121407955,13.26796289,137.94,137.92,0.05500101]
[1743121408154,7.252,137.93,137.92,0.05500101]
[1743121408865,0.05554767,137.94,137.92,0.05500101]
[1743121409268,0.05554767,137.94,137.92,7.30730101]
[1743121409568,0.05554767,137.94,137.92,0.05500101]
[1743121410367,7.30754767,137.94,137.92,0.05500101]
[1743121411860,7.252,137.93,137.92,0.05500101]
[1743121412767,0.05554767,137.94,137.93,7.252]
[1743121412968,78.72928015,138.01,137.93,13.21241522]
[1743121413170,78.72928015,138.01,137.96,13.21241522]
[1743121413362,78.72928015,138.01,137.96,20.46251522]
[1743121414073,0.04649576,138.0,137.97,7.29822173]
[1743121414271,0.04649576,138.0,137.97,0.04832173]
[1743121415165,0.04649576,138.0,137.98,7.2494]
[1743121415566,0.04649576,138.0,137.97,0.04832173]
[1743121416774,7.2492,137.99,137.97,0.04832173]
[1743121417869,7.29499576,138.0,137.97,7.29822173]
[1743121420281,7.29499576,138.0,137.97,0.04832173]
[1743121421578,0.04649576,138.0,137.97,7.29792173]
[1743121422182,7.29489576,138.0,137.97,7.29792173]
[1743121423774,0.04649576,138.0,137.98,7.2492]
[1743121424178,0.04649576,138.0,137.99,13.21241522]
[1743121425779,0.04649576,138.0,137.99,20.46131522]
[1743121430486,0.04649576,138.0,137.99,13.21241522]
[1743121432984,0.04649576,138.0,137.99,20.46131522]
[1743121444291,0.04649576,138.0,137.99,7.2489]
[1743121444879,0.04649576,138.0,137.98,13.21241522]
[1743121450101,0.04649576,138.0,137.97,0.04832173]
[1743121450299,13.21241522,137.99,137.97,0.04832173]
[1743121450694,7.2494,137.98,137.97,0.04832173]
[1743121450895,32.6494,137.98,137.97,0.04832173]
[1743121451300,25.4,137.98,137.92,7.2524]
[1743121451598,13.21241522,137.97,137.92,7.2524]
[1743121451795,7.2507,137.96,137.92,7.2524]
[1743121452297,7.2507,137.96,137.93,0.05379761]
[1743121452497,0.04596278,137.95,137.93,0.05379761]
[1743121453300,0.04596278,137.95,137.93,7.30579761]
[1743121465020,0.04596278,137.95,137.94,7.2515]
[1743121469822,0.04596278,137.95,137.93,7.30569761]
[1743121471116,0.04596278,137.95,137.93,0.05379761]
[1743121472224,0.04596278,137.95,137.93,7.30579761]
[1743121475227,7.29696278,137.95,137.93,7.30579761]
[1743121475834,7.29696278,137.95,137.93,0.05379761]
[1743121481735,7.29696278,137.95,137.93,7.30579761]
[1743121485534,7.29696278,137.95,137.93,0.05379761]
[1743121488936,0.04596278,137.95,137.93,7.30569761]
[1743121490331,7.29696278,137.95,137.93,7.30569761]
[1743121496141,7.2515,137.94,137.93,0.05379761]
[1743121496441,38.658378,137.95,137.88,13.21241522]
[1743121496643,38.61241522,137.95,137.88,13.21241522]
[1743121496842,7.2525,137.93,137.89,7.254]
[1743121497345,7.30026676,137.92,137.9,0.04794801]
[1743121497738,0.04746676,137.92,137.9,0.04794801]
[1743121498833,7.2531,137.91,137.9,0.04794801]
[1743121502751,7.30026676,137.92,137.9,7.30144801]
[1743121506449,0.04746676,137.92,137.9,7.30144801]
[1743121506644,0.04746676,137.92,137.91,7.2531]
[1743121507046,7.2496,137.98,137.9,13.26036323]
[1743121507255,67.48436493,137.99,137.94,13.21241522]
[1743121507641,13.21241522,137.98,137.94,13.21241522]
[1743121507845,13.21241522,137.98,137.93,7.2517]
[1743121508041,7.2502,137.97,137.93,7.2517]
[1743121508252,0.04874914,137.96,137.94,7.30179829]
[1743121511155,0.04874914,137.96,137.94,20.51421351]
[1743121511953,7.29934914,137.96,137.94,13.26271351]
[1743121512156,0.04874914,137.96,137.94,0.05029829]
[1743121512553,0.04874914,137.96,137.94,7.30179829]
[1743121513253,13.21241522,138.0,137.95,7.251]
[1743121513450,25.4,138.0,137.96,13.21241522]
[1743121513655,32.6487,138.0,137.97,7.2497]
[1743121513855,7.2487,138.0,137.96,13.21241522]
[1743121514258,7.2487,138.0,137.97,7.2495]
[1743121514462,0.05315499,137.99,137.97,7.2954507]
[1743121514655,0.05315499,137.99,137.97,0.0459507]
[1743121514855,0.05315499,137.99,137.98,7.2494]
[1743121515055,7.2494,137.98,137.97,0.0459507]
[1743121520354,0.05315499,137.99,137.97,0.0459507]
[1743121520557,0.05315499,137.99,137.98,7.2494]
[1743121520766,4.0077,138.03,137.98,13.21241522]
[1743121520964,13.21241522,138.04,137.98,13.21241522]
[1743121520965,38.61241522,138.04,137.98,13.21241522]
[1743121521163,38.61241522,138.04,138.01,7.2476]
[1743121521360,13.21241522,138.04,138.01,7.2476]
[1743121521665,20.45891522,138.04,138.0,20.46051522]
[1743121521966,0.04612016,138.03,138.01,0.04945664]
[1743121522562,0.04612016,138.03,138.01,7.29715664]
[1743121525066,0.04612016,138.03,138.02,7.2473]
[1743121525259,0.04612016,138.03,138.02,20.45971522]
[1743121527271,7.2455,138.06,138.03,7.2463]
[1743121528371,7.29613339,138.06,138.03,7.2463]
[1743121529670,7.2458,138.05,138.02,20.45951522]
[1743121529867,13.21241522,138.04,138.01,0.04945664]
[1743121530863,7.2473,138.02,138.01,0.04945664]
[1743121531266,7.29512532,138.03,138.01,0.04945664]
[1743121532871,7.2473,138.02,138.01,0.04945664]
[1743121536277,7.29512532,138.03,138.01,0.04945664]
[1743121537272,7.2473,138.02,138.01,0.04945664]
[1743121546671,7.2489,137.99,137.94,38.61241522]
[1743121546879,13.21241522,138.0,137.94,38.61241522]
[1743121547068,13.21241522,137.96,137.92,7.2522]
[1743121547273,7.2513,137.95,137.92,7.2522]
[1743121547573,38.61241522,137.96,137.91,20.46521522]
[1743121547774,7.30616883,137.95,137.92,0.04926246]
[1743121548677,7.30616883,137.95,137.92,7.30176246]
[1743121548881,7.2515,137.94,137.92,0.04926246]
[1743121549484,20.46391522,137.94,137.92,0.04926246]
[1743121551272,7.30596883,137.95,137.92,7.30156246]
[1743121551475,0.05476883,137.95,137.92,0.04926246]
[1743121551770,0.05476883,137.95,137.93,7.2517]
[1743121552082,0.05476883,137.95,137.92,0.04926246]
[1743121552282,7.30606883,137.95,137.92,7.30156246]
[1743121557691,7.2515,137.94,137.92,0.04926246]
[1743121560889,7.252,137.93,137.92,0.04926246]
[1743121566289,20.46421522,137.94,137.92,0.04926246]
[1743121566791,7.252,137.93,137.92,0.04926246]
[1743121567689,13.21241522,137.94,137.9,7.2532]
[1743121568287,7.2524,137.93,137.9,7.2532]
[1743121568681,13.21241522,137.94,137.89,7.254]
[1743121568886,7.2529,137.92,137.9,0.04771802]
[1743121569590,7.2531,137.91,137.9,0.04771802]
[1743121575892,13.21241522,137.92,137.83,369.21241522]
[1743121576093,13.21241522,137.89,137.84,7.2564]
[1743121576294,38.63241522,137.89,137.84,7.2564]
[1743121576595,7.2553,137.87,137.84,7.2564]
[1743121577093,7.30161528,137.87,137.84,7.30364913]
[1743121577397,0.04631528,137.87,137.84,7.30364913]
[1743121578795,7.30191528,137.87,137.84,0.04724913]
[1743121578991,13.2587305,137.87,137.84,0.04724913]
[1743121579588,7.2558,137.86,137.84,0.04724913]
[1743121580593,20.5141305,137.87,137.84,0.04724913]
[1743121581603,20.5141305,137.87,137.84,7.30374913]
[1743121582399,7.2558,137.86,137.84,0.04724913]
[1743121582598,13.2587305,137.87,137.84,0.04724913]
[1743121582987,20.5142305,137.87,137.84,7.30374913]
[1743121587404,7.2558,137.86,137.84,0.04724913]
[1743121587808,7.2581,137.82,137.7,458.33200721]
[1743121588000,13.21241522,137.79,137.7,80.54000721]
[1743121588303,38.65241522,137.79,137.72,13.21241522]
[1743121588507,7.2603,137.78,137.73,7.2623]
[1743121589005,0.05096967,137.77,137.75,7.2612]
[1743121589200,0.05096967,137.77,137.74,13.26484275]
[1743121589702,0.05096967,137.77,137.74,20.52684275]
[1743121590505,0.05096967,137.77,137.74,0.05242753]
[1743121591308,0.05096967,137.77,137.75,13.21241522]
[1743121591701,0.05096967,137.77,137.74,0.05242753]
[1743121592201,7.31146967,137.77,137.74,0.05242753]
[1743121594008,7.2611,137.76,137.74,0.05242753]
[1743121594196,20.47351522,137.76,137.74,0.05242753]
[1743121596219,7.2615,137.75,137.74,0.05242753]
[1743121597117,20.47361522,137.76,137.74,0.05242753]